fUST/lending_fUST_20240429
["ID","MTS","AMOUNT","RATE_DAILY","PERIOD"]
[324854113,1714373471777,-500.0,0.00015342,2]
[324854114,1714373471787,-636.74631871,0.00015342,2]
[324854115,1714373471796,-500.0,0.00015342,2]
[324854116,1714373471806,-725.26,0.00015342,2]
[324854117,1714373471816,-844.8,0.00015342,2]
[324854118,1714373471831,-663.85,0.00015342,2]
[324854119,1714373471841,-176.6432035,0.00015342,2]
[324854120,1714373471850,-590.93,0.00015342,2]
[324854121,1714373471860,-500.0,0.00015342,2]
[324854122,1714373471869,-500.0,0.00015342,2]
[324854123,1714373471879,-500.0,0.00015342,2]
[324854124,1714373471888,-500.0,0.00015342,2]
[324854125,1714373471898,-209.76021416,0.00015342,2]
[324854126,1714373471908,-500.0,0.00015342,2]
[324854127,1714373471917,-963.94,0.00015342,2]
[324854128,1714373471927,-500.0,0.00015342,2]
[324854129,1714373471937,-500.0,0.00015342,2]
[324854130,1714373471948,-790.18,0.00015342,2]
[324854131,1714373471958,-500.0,0.00015342,2]
[324854132,1714373471968,-1385.15,0.00015342,2]
[324854133,1714373471981,-904.16,0.00015342,2]
[324854134,1714373471991,-556.73,0.00015342,2]
[324854135,1714373472086,-500.0,0.00015342,2]
[324854136,1714373472097,-500.0,0.00015342,2]
[324854137,1714373472107,-2612.66,0.00015342,2]
[324854138,1714373472117,-670.19,0.00015342,2]
[324854139,1714373472127,-5705.05,0.00015342,2]
[324854140,1714373472137,-500.0,0.00015342,2]
[324854141,1714373472146,-3685.88,0.00015342,2]
[324854142,1714373472156,-500.0,0.00015342,2]
[324854143,1714373472166,-500.0,0.00015342,2]
[324854144,1714373472176,-500.0,0.00015342,2]
[324854145,1714373472186,-500.0,0.00015342,2]
[324854146,1714373472197,-500.0,0.00015342,2]
[324854147,1714373472207,-500.0,0.00015342,2]
[324854148,1714373472219,-3055.4,0.00015342,2]
[324854149,1714373472234,-500.0,0.00015342,2]
[324854150,1714373472243,-943.99,0.00015342,2]
[324854151,1714373472253,-500.0,0.00015342,2]
[324854152,1714373472263,-500.0,0.00015342,2]
[324854153,1714373472272,-676.52,0.00015342,2]
[324854154,1714373472281,-2057.47,0.00015342,2]
[324854155,1714373472294,-598.25,0.00015342,2]
[324854156,1714373472304,-1272.21,0.00015342,2]
[324854157,1714373472313,-7316.87,0.00015342,2]
[324854158,1714373472323,-500.0,0.00015342,2]
[324854159,1714373472332,-726.9,0.00015342,2]
[324854160,1714373472343,-500.0,0.00015342,2]
[324854161,1714373472353,-797.11,0.00015342,2]
[324854162,1714373472363,-604.72,0.00015342,2]
[324854163,1714373472372,-500.0,0.00015342,2]
[324854164,1714373472382,-1382.46,0.00015342,2]
[324854165,1714373472391,-500.0,0.00015342,2]
[324854166,1714373472400,-2899.35,0.00015342,2]
[324854167,1714373472410,-643.79,0.00015342,2]
[324854168,1714373472420,-1036.38,0.00015342,2]
[324854169,1714373472429,-500.0,0.00015342,2]
[324854170,1714373472439,-500.0,0.00015342,2]
[324854171,1714373472449,-500.0,0.00015342,2]
[324854172,1714373472459,-338.80192771,0.00015342,2]
[324854173,1714373472468,-500.0,0.00015342,2]
[324854174,1714373472479,-3783.63,0.00015342,2]
[324854175,1714373472489,-567.55,0.00015342,2]
[324854176,1714373472498,-500.0,0.00015342,2]
[324854177,1714373472508,-1762.71,0.00015342,2]
[324854178,1714373472518,-544.02,0.00015342,2]
[324854179,1714373472527,-500.0,0.00015342,2]
[324854180,1714373472537,-500.0,0.00015342,2]
[324854181,1714373472547,-909.69,0.00015342,2]
[324854182,1714373472556,-500.0,0.00015342,2]
[324854183,1714373472566,-1544.95,0.00015342,2]
[324854184,1714373472577,-566.35,0.00015342,2]
[324854185,1714373472587,-1632.08,0.00015342,2]
[324854186,1714373472596,-2536.93,0.00015342,2]
[324854187,1714373472605,-16167.34,0.00015342,2]
[324854188,1714373472615,-3184.94,0.00015342,2]
[324854189,1714373472625,-844.47,0.00015342,2]
[324854190,1714373472635,-1248.72,0.00015342,2]
[324854191,1714373472645,-705.06,0.00015342,2]
[324854192,1714373472654,-500.0,0.00015342,2]
[324854193,1714373472667,-5367.9,0.00015342,2]
[324854194,1714373472676,-500.0,0.00015342,2]
[324854195,1714373472687,-603.55,0.00015342,2]
[324854196,1714373472696,-1338.49,0.00015342,2]
[324854197,1714373472706,-500.0,0.00015342,2]
[324854198,1714373472716,-752.29,0.00015342,2]
[324854199,1714373472730,-803.38,0.00015342,2]
[324854200,1714373472740,-500.0,0.00015342,2]
[324854201,1714373472750,-12574.48,0.00015342,2]
[324854202,1714373472761,-12192.24,0.00015342,2]
[324854203,1714373472771,-500.0,0.00015342,2]
[324854204,1714373472781,-998.22,0.00015342,2]
[324854205,1714373472791,-589.37,0.00015342,2]
[324854206,1714373472801,-5507.92,0.00015342,2]
[324854207,1714373472811,-992.33,0.00015342,2]
[324854208,1714373472821,-500.0,0.00015342,2]
[324854209,1714373472831,-153.0,0.00015507,2]
[324854210,1714373472841,-153.0,0.00015507,2]
[324854211,1714373472850,-153.0,0.00015507,2]
[324854212,1714373472860,-620.00001881,0.00015587,2]
[324854213,1714373472870,-500.0,0.00015616,2]
[324854214,1714373472880,-500.0,0.00015616,2]
[324854215,1714373472890,-500.0,0.00015616,2]
[324854216,1714373472899,-523.85,0.00015616,2]
[324854217,1714373472909,-508.84,0.00015616,2]
[324854218,1714373472919,-500.0,0.00015616,2]
[324854219,1714373472929,-408.40144856,0.00015616,2]
[324854220,1714373472939,-500.0,0.00015616,2]
[324854221,1714373472949,-500.0,0.00015616,2]
[324854222,1714373472960,-625.82,0.00015616,2]
[324854223,1714373472969,-500.0,0.00015616,2]
[324854224,1714373472982,-500.0,0.00015616,2]
[324854225,1714373472992,-500.0,0.00015616,2]
[324854226,1714373473002,-500.0,0.00015616,2]
[324854227,1714373473011,-1626.12,0.00015616,2]
[324854228,1714373473021,-500.0,0.00015616,2]
[324854229,1714373473030,-500.0,0.00015616,2]
[324854230,1714373473040,-500.0,0.00015616,2]
[324854231,1714373473049,-611.54,0.00015616,2]
[324854232,1714373473059,-559.33,0.00015616,2]
[324854233,1714373473068,-608.08,0.00015616,2]
[324854234,1714373473079,-500.0,0.00015616,2]
[324854235,1714373473089,-500.0,0.00015616,2]
[324854236,1714373473098,-428.22687292,0.00015616,2]
[324854237,1714373473109,-687.07,0.00015616,2]
[324854238,1714373473118,-500.0,0.00015616,2]
[324854239,1714373473128,-500.0,0.00015616,2]
[324854240,1714373473138,-504.72,0.00015616,2]
[324854241,1714373473147,-500.0,0.00015616,2]
[324854242,1714373473157,-832.64,0.00015616,2]
[324854243,1714373473166,-500.0,0.00015616,2]
[324854244,1714373473176,-515.01,0.00015616,2]
[324854245,1714373473186,-1105.2,0.00015616,2]
[324854246,1714373473201,-630.39,0.00015616,2]
[324854247,1714373473212,-604.09,0.00015616,2]
[324854248,1714373473222,-500.0,0.00015616,2]
[324854249,1714373473235,-500.0,0.00015616,2]
[324854250,1714373473246,-500.0,0.00015616,2]
[324854251,1714373473258,-500.0,0.00015616,2]
[324854252,1714373473268,-693.58,0.00015616,2]
[324854253,1714373473280,-598.14,0.00015616,2]
[324854254,1714373473292,-591.07,0.00015616,2]
[324854255,1714373473304,-673.38,0.00015616,2]
[324854256,1714373473316,-500.0,0.00015616,2]
[324854257,1714373473327,-533.22,0.00015616,2]
[324854258,1714373473338,-1230.36,0.00015616,2]
[324854259,1714373473348,-500.0,0.00015616,2]
[324854260,1714373473357,-1147.49,0.00015616,2]
[324854261,1714373473367,-500.0,0.00015616,2]
[324854262,1714373473377,-1302.49,0.00015616,2]
[324854263,1714373473387,-844.49,0.00015616,2]
[324854264,1714373473396,-500.0,0.00015616,2]
[324854265,1714373473405,-614.75,0.00015616,2]
[324854266,1714373473415,-199.6,0.00015616,2]
[324854267,1714373473425,-1388.78,0.00015616,2]
[324854268,1714373473434,-500.0,0.00015616,2]
[324854269,1714373473444,-623.41,0.00015616,2]
[324854270,1714373473454,-797.81,0.00015616,2]
[324854271,1714373473464,-500.0,0.00015616,2]
[324854272,1714373473474,-590.29,0.00015616,2]
[324854273,1714373473487,-500.0,0.00015616,2]
[324854274,1714373473496,-807.83,0.00015616,2]
[324854275,1714373473506,-607.0,0.00015616,2]
[324854276,1714373473597,-500.0,0.00015616,2]
[324854277,1714373473609,-940.83,0.00015616,2]
[324854278,1714373473619,-500.0,0.00015616,2]
[324854279,1714373473629,-500.0,0.00015616,2]
[324854280,1714373473639,-782.16,0.00015616,2]
[324854281,1714373473649,-500.0,0.00015616,2]
[324854282,1714373473659,-520.06,0.00015616,2]
[324854283,1714373473669,-500.0,0.00015616,2]
[324854284,1714373473679,-500.0,0.00015616,2]
[324854285,1714373473689,-500.0,0.00015616,2]
[324854286,1714373473699,-564.0,0.00015616,2]
[324854287,1714373473709,-851.11,0.00015616,2]
[324854288,1714373473719,-510.47,0.00015616,2]
[324854289,1714373473732,-500.0,0.00015616,2]
[324854290,1714373473741,-500.0,0.00015616,2]
[324854291,1714373473751,-1533.33,0.00015616,2]
[324854292,1714373473760,-1895.96,0.00015616,2]
[324854293,1714373473770,-1322.31,0.00015616,2]
[324854294,1714373473779,-500.0,0.00015616,2]
[324854295,1714373473789,-500.0,0.00015616,2]
[324854296,1714373473799,-500.0,0.00015616,2]
[324854297,1714373473808,-500.0,0.00015616,2]
[324854298,1714373473817,-1437.53,0.00015616,2]
[324854299,1714373473827,-500.0,0.00015616,2]
[324854300,1714373473837,-1191.98,0.00015616,2]
[324854301,1714373473846,-500.0,0.00015616,2]
[324854302,1714373473855,-1134.6,0.00015616,2]
[324854303,1714373473865,-1094.75,0.00015616,2]
[324854304,1714373473874,-510.32,0.00015616,2]
[324854305,1714373473884,-2552.95,0.00015616,2]
[324854306,1714373473893,-1704.43,0.00015616,2]
[324854307,1714373473903,-1486.42,0.00015616,2]
[324854308,1714373473913,-500.0,0.00015616,2]
[324854309,1714373473922,-500.0,0.00015616,2]
[324854310,1714373473932,-500.0,0.00015616,2]
[324854311,1714373473942,-500.0,0.00015616,2]
[324854312,1714373473952,-500.0,0.00015616,2]
[324854313,1714373473962,-500.0,0.00015616,2]
[324854314,1714373473971,-725.26,0.00015616,2]
[324854315,1714373473983,-844.8,0.00015616,2]
[324854316,1714373473993,-663.85,0.00015616,2]
[324854317,1714373474003,-590.93,0.00015616,2]
[324854318,1714373474014,-500.0,0.00015616,2]
[324854319,1714373474023,-631.90086262,0.00015616,2]
[324854320,1714373474034,-500.0,0.00015616,2]
[324854321,1714373474044,-500.0,0.00015616,2]
[324854322,1714373474054,-500.0,0.00015616,2]
[324854323,1714373474064,-963.94,0.00015616,2]
[324854324,1714373474074,-539.43966502,0.00015616,2]
[324854325,1714373474087,-500.0,0.00015616,2]
[324854326,1714373474099,-790.18,0.00015616,2]
[324854327,1714373474114,-500.0,0.00015616,2]
[324854328,1714373474126,-1385.15,0.00015616,2]
[324854329,1714373474138,-904.16,0.00015616,2]
[324854330,1714373474151,-556.73,0.00015616,2]
[324854331,1714373474164,-500.0,0.00015616,2]
[324854332,1714373474174,-500.0,0.00015616,2]
[324854333,1714373474184,-2612.66,0.00015616,2]
[324854334,1714373474200,-670.19,0.00015616,2]
[324854335,1714373474220,-5705.05,0.00015616,2]
[324854336,1714373474233,-500.0,0.00015616,2]
[324854337,1714373474245,-3685.88,0.00015616,2]
[324854338,1714373474255,-500.0,0.00015616,2]
[324854339,1714373474264,-500.0,0.00015616,2]
[324854340,1714373474275,-500.0,0.00015616,2]
[324854341,1714373474287,-500.0,0.00015616,2]
[324854342,1714373474298,-500.0,0.00015616,2]
[324854343,1714373474308,-454.79592923,0.00015616,2]
[324854344,1714373474319,-3055.4,0.00015616,2]
[324854345,1714373474329,-500.0,0.00015616,2]
[324854346,1714373474338,-943.99,0.00015616,2]
[324854347,1714373474348,-500.0,0.00015616,2]
[324854348,1714373474361,-500.0,0.00015616,2]
[324854349,1714373474372,-676.52,0.00015616,2]
[324854350,1714373474382,-2057.47,0.00015616,2]
[324854351,1714373474392,-598.25,0.00015616,2]
[324854352,1714373474402,-1272.21,0.00015616,2]
[324854353,1714373474412,-7316.87,0.00015616,2]
[324854354,1714373474422,-500.0,0.00015616,2]
[324854355,1714373474431,-726.9,0.00015616,2]
[324854356,1714373474441,-500.0,0.00015616,2]
[324854357,1714373474451,-797.11,0.00015616,2]
[324854358,1714373474460,-604.72,0.00015616,2]
[324854359,1714373474470,-500.0,0.00015616,2]
[324854360,1714373474484,-1382.46,0.00015616,2]
[324854361,1714373474498,-500.0,0.00015616,2]
[324854362,1714373474508,-2899.35,0.00015616,2]
[324854363,1714373474518,-643.79,0.00015616,2]
[324854364,1714373474528,-1036.38,0.00015616,2]
[324854365,1714373474537,-500.0,0.00015616,2]
[324854366,1714373474547,-500.0,0.00015616,2]
[324854367,1714373474557,-500.0,0.00015616,2]
[324854368,1714373474566,-500.0,0.00015616,2]
[324854369,1714373474581,-3783.63,0.00015616,2]
[324854370,1714373474591,-567.55,0.00015616,2]
[324854371,1714373474601,-500.0,0.00015616,2]
[324854372,1714373474611,-1762.71,0.00015616,2]
[324854373,1714373474621,-544.02,0.00015616,2]
[324854374,1714373474631,-397.17105752,0.00015616,2]
[324854375,1714373474641,-500.0,0.00015616,2]
[324854376,1714373474669,-909.69,0.00015616,2]
[324854377,1714373474679,-500.0,0.00015616,2]
[324854378,1714373474688,-1544.95,0.00015616,2]
[324854379,1714373474698,-566.35,0.00015616,2]
[324854380,1714373474708,-1632.08,0.00015616,2]
[324854381,1714373474724,-2536.93,0.00015616,2]
[324854382,1714373474735,-16167.34,0.00015616,2]
[324854383,1714373474745,-3184.94,0.00015616,2]
[324854384,1714373474755,-844.47,0.00015616,2]
[324854385,1714373474764,-1248.72,0.00015616,2]
[324854386,1714373474774,-705.06,0.00015616,2]
[324854387,1714373474788,-500.0,0.00015616,2]
[324854388,1714373474798,-5367.9,0.00015616,2]
[324854389,1714373474808,-500.0,0.00015616,2]
[324854390,1714373474817,-603.55,0.00015616,2]
[324854391,1714373474827,-1338.49,0.00015616,2]
[324854392,1714373474836,-500.0,0.00015616,2]
[324854393,1714373474846,-752.29,0.00015616,2]
[324854394,1714373474855,-803.38,0.00015616,2]
[324854395,1714373474865,-500.0,0.00015616,2]
[324854396,1714373474875,-12574.48,0.00015616,2]
[324854397,1714373474884,-12192.24,0.00015616,2]
[324854398,1714373474894,-500.0,0.00015616,2]
[324854399,1714373474904,-998.22,0.00015616,2]
[324854400,1714373474914,-589.37,0.00015616,2]
[324854401,1714373474924,-5507.92,0.00015616,2]
[324854402,1714373474934,-992.33,0.00015616,2]
[324854403,1714373474944,-153.0,0.00015616,2]
[324854404,1714373474953,-153.0,0.00015616,2]
[324854405,1714373474963,-153.0,0.00015616,2]
[324854406,1714373474972,-153.0,0.00015616,2]
[324854407,1714373475062,-153.0,0.00015616,2]
[324854408,1714373475072,-153.0,0.00015616,2]
[324854409,1714373475082,-153.0,0.00015616,2]
[324854410,1714373475091,-153.0,0.00015616,2]
[324854411,1714373475101,-160.0,0.00015781,2]
[324854412,1714373475110,-1332.9,0.0001584,3]
[324854413,1714373475119,-500.0,0.0001589,2]
[324854414,1714373475129,-500.0,0.0001589,2]
[324854415,1714373475139,-500.0,0.0001589,2]
[324854416,1714373475148,-523.85,0.0001589,2]
[324854417,1714373475158,-508.84,0.0001589,2]
[324854418,1714373475167,-500.0,0.0001589,2]
[324854419,1714373475177,-500.0,0.0001589,2]
[324854420,1714373475186,-500.0,0.0001589,2]
[324854421,1714373475196,-625.82,0.0001589,2]
[324854422,1714373475207,-500.0,0.0001589,2]
[324854423,1714373475218,-500.0,0.0001589,2]
[324854424,1714373475228,-500.0,0.0001589,2]
[324854425,1714373475241,-500.0,0.0001589,2]
[324854426,1714373475250,-1626.12,0.0001589,2]
[324854427,1714373475259,-500.0,0.0001589,2]
[324854428,1714373475271,-500.0,0.0001589,2]
[324854429,1714373475283,-500.0,0.0001589,2]
[324854430,1714373475292,-611.54,0.0001589,2]
[324854431,1714373475303,-559.33,0.0001589,2]
[324854432,1714373475312,-608.08,0.0001589,2]
[324854433,1714373475321,-500.0,0.0001589,2]
[324854434,1714373475331,-500.0,0.0001589,2]
[324854435,1714373475341,-687.07,0.0001589,2]
[324854436,1714373475350,-180.82339487,0.0001589,2]
[324854437,1714373475360,-500.0,0.0001589,2]
[324854438,1714373475370,-504.72,0.0001589,2]
[324854439,1714373475381,-500.0,0.0001589,2]
[324854440,1714373475390,-832.64,0.0001589,2]
[324854441,1714373475400,-500.0,0.0001589,2]
[324854442,1714373475410,-515.01,0.0001589,2]
[324854443,1714373475420,-1105.2,0.0001589,2]
[324854444,1714373475430,-630.39,0.0001589,2]
[324854445,1714373475439,-604.09,0.0001589,2]
[324854446,1714373475448,-500.0,0.0001589,2]
[324854447,1714373475457,-500.0,0.0001589,2]
[324854448,1714373475467,-500.0,0.0001589,2]
[324854449,1714373475477,-500.0,0.0001589,2]
[324854450,1714373475491,-693.58,0.0001589,2]
[324854451,1714373475501,-598.14,0.0001589,2]
[324854452,1714373475510,-591.07,0.0001589,2]
[324854453,1714373475519,-673.38,0.0001589,2]
[324854454,1714373475529,-500.0,0.0001589,2]
[324854455,1714373475538,-533.22,0.0001589,2]
[324854456,1714373475548,-1230.36,0.0001589,2]
[324854457,1714373475558,-500.0,0.0001589,2]
[324854458,1714373475568,-1147.49,0.0001589,2]
[324854459,1714373475579,-500.0,0.0001589,2]
[324854460,1714373475589,-1302.49,0.0001589,2]
[324854461,1714373475599,-844.49,0.0001589,2]
[324854462,1714373475611,-500.0,0.0001589,2]
[324854463,1714373475620,-614.75,0.0001589,2]
[324854464,1714373475631,-1388.78,0.0001589,2]
[324854465,1714373475641,-429.72645383,0.0001589,2]
[324854466,1714373475651,-623.41,0.0001589,2]
[324854467,1714373475672,-797.81,0.0001589,2]
[324854468,1714373475688,-500.0,0.0001589,2]
[324854469,1714373475709,-590.29,0.0001589,2]
[324854470,1714373475734,-500.0,0.0001589,2]
[324854471,1714373475751,-807.83,0.0001589,2]
[324854472,1714373475770,-607.0,0.0001589,2]
[324854473,1714373475787,-500.0,0.0001589,2]
[324854474,1714373475804,-940.83,0.0001589,2]
[324854475,1714373475822,-500.0,0.0001589,2]
[324854476,1714373475845,-500.0,0.0001589,2]
[324854477,1714373475860,-782.16,0.0001589,2]
[324854478,1714373475878,-500.0,0.0001589,2]
[324854479,1714373475894,-520.06,0.0001589,2]
[324854480,1714373475910,-500.0,0.0001589,2]
[324854481,1714373475925,-500.0,0.0001589,2]
[324854482,1714373475940,-507.58269237,0.0001589,2]
[324854483,1714373475956,-564.0,0.0001589,2]
[324854484,1714373475970,-851.11,0.0001589,2]
[324854485,1714373475988,-510.47,0.0001589,2]
[324854486,1714373476005,-500.0,0.0001589,2]
[324854487,1714373476019,-500.0,0.0001589,2]
[324854488,1714373476034,-1533.33,0.0001589,2]
[324854489,1714373476048,-1895.96,0.0001589,2]
[324854490,1714373476061,-1322.31,0.0001589,2]
[324854491,1714373476076,-500.0,0.0001589,2]
[324854492,1714373476091,-500.0,0.0001589,2]
[324854493,1714373476107,-500.0,0.0001589,2]
[324854494,1714373476122,-1437.53,0.0001589,2]
[324854495,1714373476137,-500.0,0.0001589,2]
[324854496,1714373476152,-1191.98,0.0001589,2]
[324854497,1714373476167,-500.0,0.0001589,2]
[324854498,1714373476182,-1134.6,0.0001589,2]
[324854499,1714373476201,-1094.75,0.0001589,2]
[324854500,1714373476216,-510.32,0.0001589,2]
[324854501,1714373476231,-2552.95,0.0001589,2]
[324854502,1714373476248,-1704.43,0.0001589,2]
[324854503,1714373476263,-1486.42,0.0001589,2]
[324854504,1714373476278,-500.0,0.0001589,2]
[324854505,1714373476294,-500.0,0.0001589,2]
[324854506,1714373476308,-500.0,0.0001589,2]
[324854507,1714373476323,-500.0,0.0001589,2]
[324854508,1714373476337,-500.0,0.0001589,2]
[324854509,1714373476352,-500.0,0.0001589,2]
[324854510,1714373476367,-725.26,0.0001589,2]
[324854511,1714373476381,-844.8,0.0001589,2]
[324854512,1714373476396,-663.85,0.0001589,2]
[324854513,1714373476411,-590.93,0.0001589,2]
[324854514,1714373476426,-500.0,0.0001589,2]
[324854515,1714373476440,-500.0,0.0001589,2]
[324854516,1714373476455,-500.0,0.0001589,2]
[324854517,1714373476472,-500.0,0.0001589,2]
[324854518,1714373476490,-963.94,0.0001589,2]
[324854519,1714373476505,-500.0,0.0001589,2]
[324854520,1714373476521,-790.18,0.0001589,2]
[324854521,1714373476536,-582.38421687,0.0001589,2]
[324854522,1714373476550,-1385.15,0.0001589,2]
[324854523,1714373476565,-904.16,0.0001589,2]
[324854524,1714373476580,-556.73,0.0001589,2]
[324854525,1714373476595,-500.0,0.0001589,2]
[324854526,1714373476609,-2612.66,0.0001589,2]
[324854527,1714373476735,-670.19,0.0001589,2]
[324854528,1714373476745,-5705.05,0.0001589,2]
[324854529,1714373476756,-500.0,0.0001589,2]
[324854530,1714373476765,-3685.88,0.0001589,2]
[324854531,1714373476775,-533.18650261,0.0001589,2]
[324854532,1714373476785,-500.0,0.0001589,2]
[324854533,1714373476795,-500.0,0.0001589,2]
[324854534,1714373476805,-500.0,0.0001589,2]
[324854535,1714373476815,-526.51597777,0.0001589,2]
[324854536,1714373476827,-3055.4,0.0001589,2]
[324854537,1714373476837,-500.0,0.0001589,2]
[324854538,1714373476848,-943.99,0.0001589,2]
[324854539,1714373476858,-500.0,0.0001589,2]
[324854540,1714373476871,-500.0,0.0001589,2]
[324854541,1714373476881,-676.52,0.0001589,2]
[324854542,1714373476891,-2057.47,0.0001589,2]
[324854543,1714373476901,-598.25,0.0001589,2]
[324854544,1714373476911,-1272.21,0.0001589,2]
[324854545,1714373476922,-7316.87,0.0001589,2]
[324854546,1714373476932,-500.0,0.0001589,2]
[324854547,1714373476942,-726.9,0.0001589,2]
[324854548,1714373476952,-500.0,0.0001589,2]
[324854549,1714373476962,-797.11,0.0001589,2]
[324854550,1714373476972,-604.72,0.0001589,2]
[324854551,1714373476984,-500.0,0.0001589,2]
[324854552,1714373476994,-1382.46,0.0001589,2]
[324854553,1714373477004,-264.34001041,0.0001589,2]
[324854554,1714373477014,-2899.35,0.0001589,2]
[324854555,1714373477024,-643.79,0.0001589,2]
[324854556,1714373477034,-1036.38,0.0001589,2]
[324854557,1714373477044,-500.0,0.0001589,2]
[324854558,1714373477054,-500.0,0.0001589,2]
[324854559,1714373477064,-500.0,0.0001589,2]
[324854560,1714373477074,-500.0,0.0001589,2]
[324854561,1714373477084,-3783.63,0.0001589,2]
[324854562,1714373477094,-567.55,0.0001589,2]
[324854563,1714373477105,-500.0,0.0001589,2]
[324854564,1714373477115,-1762.71,0.0001589,2]
[324854565,1714373477126,-544.02,0.0001589,2]
[324854566,1714373477137,-500.0,0.0001589,2]
[324854567,1714373477147,-909.69,0.0001589,2]
[324854568,1714373477158,-500.0,0.0001589,2]
[324854569,1714373477168,-1544.95,0.0001589,2]
[324854570,1714373477180,-566.35,0.0001589,2]
[324854571,1714373477191,-1632.08,0.0001589,2]
[324854572,1714373477207,-2536.93,0.0001589,2]
[324854573,1714373477218,-16167.34,0.0001589,2]
[324854574,1714373477229,-3184.94,0.0001589,2]
[324854575,1714373477247,-844.47,0.0001589,2]
[324854576,1714373477258,-1248.72,0.0001589,2]
[324854577,1714373477269,-705.06,0.0001589,2]
[324854578,1714373477281,-500.0,0.0001589,2]
[324854579,1714373477293,-5367.9,0.0001589,2]
[324854580,1714373477304,-500.0,0.0001589,2]
[324854581,1714373477314,-603.55,0.0001589,2]
[324854582,1714373477325,-1338.49,0.0001589,2]
[324854583,1714373477335,-500.0,0.0001589,2]
[324854584,1714373477345,-752.29,0.0001589,2]
[324854585,1714373477355,-803.38,0.0001589,2]
[324854586,1714373477366,-500.0,0.0001589,2]
[324854587,1714373477377,-12574.48,0.0001589,2]
[324854588,1714373477387,-12192.24,0.0001589,2]
[324854589,1714373477400,-500.0,0.0001589,2]
[324854590,1714373477411,-998.22,0.0001589,2]
[324854591,1714373477422,-589.37,0.0001589,2]
[324854592,1714373477432,-5507.92,0.0001589,2]
[324854593,1714373477442,-992.33,0.0001589,2]
[324854594,1714373477452,-306.0,0.0001589,2]
[324854595,1714373477462,-153.0,0.0001589,2]
[324854596,1714373477472,-153.0,0.0001589,2]
[324854597,1714373477486,-171.8927227,0.0001589,2]
[324854598,1714373477497,-514.23297925,0.00016,2]
[324854599,1714373477507,-177.0,0.00016,2]
[324854600,1714373477517,-500.0,0.00016164,2]
[324854601,1714373477527,-500.0,0.00016164,2]
[324854602,1714373477537,-500.0,0.00016164,2]
[324854603,1714373477547,-523.85,0.00016164,2]
[324854604,1714373477557,-508.84,0.00016164,2]
[324854605,1714373477566,-500.0,0.00016164,2]
[324854606,1714373477576,-500.0,0.00016164,2]
[324854607,1714373477587,-500.0,0.00016164,2]
[324854608,1714373477597,-625.82,0.00016164,2]
[324854609,1714373477606,-500.0,0.00016164,2]
[324854610,1714373477616,-500.0,0.00016164,2]
[324854611,1714373477626,-500.0,0.00016164,2]
[324854612,1714373477637,-500.0,0.00016164,2]